bitfinex/quotes_SOLUSD_20220113
["timestamp","ask_amount","ask_price","bid_price","bid_amount"]
[1642032001159,6.0,151.54,151.46,43.7712]
[1642032001354,25.68907668,151.55,151.46,43.7712]
[1642032001782,23.8843,151.55,151.46,43.7712]
[1642032005057,23.8843,151.55,151.49,9.8992]
[1642032005257,23.8843,151.55,151.49,19.5992]
[1642032009293,31.84196796,151.52,151.49,19.5992]
[1642032009494,63.68393592,151.52,151.49,19.5992]
[1642032010693,63.68393592,151.52,151.49,19.3492]
[1642032010894,63.68393592,151.52,151.49,9.45]
[1642032012303,2.64,151.51,151.49,9.45]
[1642032012504,63.68393592,151.52,151.49,9.45]
[1642032012805,3.03210004,151.51,151.49,9.45]
[1642032014612,34.48196796,151.5,151.49,9.45]
[1642032014809,66.32393592,151.5,151.49,9.45]
[1642032015109,69.35613589,151.5,151.49,9.45]
[1642032015307,69.35613589,151.5,151.49,2.31699043]
[1642032016013,66.71613589,151.5,151.46,9.45]
[1642032016413,2.64,151.49,151.46,9.45]
[1642032016714,2.89,151.49,151.46,9.45]
[1642032016912,53.0,151.48,151.42,0.16510868]
[1642032017113,53.0,151.48,151.43,9.45]
[1642032017114,2.641,151.47,151.43,9.45]
[1642032017313,3.36211485,151.46,151.39,9.45]
[1642032017512,2.641,151.45,151.39,9.45]
[1642032017714,2.891,151.45,151.39,9.45]
[1642032018013,15.9085,151.44,151.39,9.45]
[1642032018212,2.641,151.43,151.33,9.45]
[1642032018412,28.95467668,151.43,151.33,9.45]
[1642032018613,66.3470829,151.4,151.34,1.88180428]
[1642032018914,9.9137,151.37,151.31,3.76360856]
[1642032019112,2.642,151.36,151.29,9.45]
[1642032019316,2.642,151.36,151.27,15.55871285]
[1642032019317,2.642,151.36,151.27,15.09541285]
[1642032019513,66.04,151.34,151.27,15.09541285]
[1642032019713,2.642,151.33,151.27,15.09541285]
[1642032019915,31.84196796,151.3,151.27,15.09541285]
[1642032020114,31.84196796,151.28,151.27,15.09541285]
[1642032020914,31.84196796,151.28,151.27,21.09541285]
[1642032021621,37.90626797,151.28,151.27,15.09541285]
[1642032021829,37.90626797,151.28,151.24,9.95341311]
[1642032021830,37.90626797,151.28,151.24,0.03791311]
[1642032022026,2.644,151.27,151.24,0.03791311]
[1642032022228,32.09196796,151.28,151.24,0.03791311]
[1642032022429,31.84196796,151.28,151.24,0.03791311]
[1642032024126,32.09196796,151.28,151.24,0.03791311]
[1642032024927,2.644,151.27,151.24,0.03791311]
[1642032025127,6.06430001,151.26,151.24,0.03791311]
[1642032025326,37.90626797,151.26,151.24,0.03791311]
[1642032025528,31.84196796,151.25,151.24,0.03791311]
[1642032025728,0.00196796,151.25,151.24,0.03791311]
[1642032025929,2.644,151.37,151.26,1.5373364]
[1642032026126,9.9127,151.37,151.27,9.9136]
[1642032026328,9.9127,151.37,151.27,15.9136]
[1642032026529,155.6111,151.42,151.28,67.5773364]
[1642032026530,78.2344,151.42,151.28,67.5773364]
[1642032026730,1.55002354,151.43,151.3,118.15]
[1642032026935,1.55002354,151.43,151.32,33.0255]
[1642032027133,1.55002354,151.43,151.33,9.45]
[1642032027332,1.55002354,151.43,151.34,9.909]
[1642032027531,2.642,151.42,151.35,9.45]
[1642032027831,1.55002354,151.43,151.35,9.45]
[1642032028051,1.55002354,151.43,151.35,38.41554046]
[1642032028252,1.55002354,151.43,151.35,39.95287686]
[1642032030358,1.55002354,151.43,151.35,49.86127686]
[1642032031661,2.642,151.44,151.35,49.86127686]
[1642032031860,2.892,151.44,151.35,48.32394046]
[1642032032063,2.892,151.44,151.35,38.41554046]
[1642032032561,2.892,151.44,151.35,9.7]
[1642032032760,12.3016,151.44,151.35,9.7]
[1642032032960,2.392,151.44,151.35,9.7]
[1642032034369,12.3015,151.44,151.35,9.7]
[1642032035964,78.3415,151.44,151.35,9.7]
[1642032036667,6.0,151.43,151.35,9.7]
[1642032036866,2.642,151.42,151.35,9.7]
[1642032037066,6.0,151.41,151.35,9.7]
[1642032037667,6.0,151.42,151.35,9.7]
[1642032038067,6.25,151.42,151.32,9.45]
[1642032038267,2.642,151.41,151.32,9.45]
[1642032038666,6.0,151.4,151.32,9.45]
[1642032038867,2.642,151.39,151.32,9.45]
[1642032039292,2.892,151.39,151.32,9.45]
[1642032040868,2.892,151.39,151.28,9.45]
[1642032041068,2.892,151.39,151.27,0.301848]
[1642032041069,6.0,151.38,151.27,0.301848]
[1642032041269,2.642,151.37,151.27,0.301848]
[1642032041670,6.0,151.36,151.27,0.301848]
[1642032041876,2.642,151.35,151.27,0.301848]
[1642032042070,6.0,151.34,151.27,0.301848]
[1642032042269,2.642,151.33,151.27,0.301848]
[1642032042478,4.44677668,151.33,151.27,0.301848]
[1642032042673,6.0,151.32,151.27,0.301848]
[1642032042874,12.5602,151.31,151.27,0.301848]
[1642032043072,2.642,151.31,151.24,0.03791311]
[1642032043272,2.892,151.31,151.24,0.03791311]
[1642032043477,68.932,151.31,151.24,0.03791311]
[1642032043875,66.04,151.29,151.24,0.03791311]
[1642032044079,8.644,151.28,151.24,0.03791311]
[1642032044275,71.0,151.27,151.15,9.45]
[1642032044477,74.685,151.26,151.12,9.45]
[1642032044679,74.935,151.26,151.12,9.45]
[1642032044982,1.80477668,151.25,151.12,9.45]
[1642032045175,2.645,151.24,151.12,9.45]
[1642032045376,8.645,151.24,151.12,8.45]
[1642032045576,9.9234,151.22,151.12,18.3734]
[1642032045776,10.1734,151.22,151.12,18.3734]
[1642032045979,11.97817668,151.22,151.13,6.0]
[1642032046377,6.0,151.21,151.1,9.45]
[1642032046578,9.9244,151.2,151.1,19.3744]
[1642032046804,2.646,151.19,151.07,9.45]
[1642032047005,8.646,151.19,151.07,9.45]
[1642032047209,8.896,151.19,151.07,9.45]
[1642032047404,8.896,151.19,151.07,10.98906792]
[1642032047806,2.896,151.19,151.08,6.0]
[1642032048006,10.1755,151.19,151.09,25.21704475]
[1642032048206,4.45077668,151.22,151.1,9.45]
[1642032048407,1.80477668,151.22,151.1,15.45]
[1642032048608,6.0,151.21,151.1,15.7]
[1642032048807,8.646,151.21,151.1,15.7]
[1642032049209,8.646,151.21,151.1,9.45]
[1642032049409,20.37477668,151.21,151.1,19.3746]
[1642032049712,18.57,151.21,151.1,20.91366792]
[1642032049909,8.646,151.21,151.1,20.91366792]
[1642032050113,83.6698,151.23,151.11,6.0]
[1642032050114,74.2198,151.23,151.11,6.0]
[1642032050309,74.2198,151.23,151.14,9.922]
[1642032050709,74.2198,151.23,151.14,11.71106792]
[1642032051611,74.2198,151.23,151.14,10.172]
[1642032051811,74.2198,151.23,151.14,0.25]
[1642032052111,6.0,151.22,151.12,9.923]
[1642032052511,6.25,151.22,151.12,10.173]
[1642032052715,6.0,151.22,151.13,1.53906792]
[1642032052913,74.4698,151.23,151.13,1.53906792]
[1642032053112,74.4698,151.23,151.15,9.9214]
[1642032053313,2.645,151.22,151.13,0.25]
[1642032053714,2.895,151.22,151.12,0.25]
[1642032054113,2.645,151.22,151.12,0.25]
[1642032054414,2.645,151.22,151.13,9.9223]
[1642032054616,74.2198,151.23,151.14,6.0]
[1642032055018,74.4698,151.23,151.14,6.0]
[1642032055220,74.4698,151.23,151.14,6.25]
[1642032056518,2.645,151.24,151.17,9.9199]
[1642032056718,2.645,151.28,151.17,19.6199]
[1642032056920,2.644,151.3,151.18,7.53906792]
[1642032057119,6.0,151.29,151.19,9.45]
[1642032057318,6.0,151.29,151.19,10.98906792]
[1642032057518,6.0,151.29,151.2,6.0]
[1642032057725,6.25,151.29,151.2,16.1678]
[1642032058124,6.25,151.29,151.2,25.6178]
[1642032058318,2.644,151.28,151.2,25.6178]
[1642032059117,2.894,151.28,151.2,25.6178]
[1642032059918,2.894,151.28,151.2,25.3678]
[1642032060119,3.55166328,151.27,151.2,25.6178]
[1642032060325,2.644,151.26,151.2,19.6178]
[1642032060522,2.644,151.26,151.2,9.45]
[1642032060721,2.644,151.26,151.17,9.45]
[1642032060722,2.894,151.26,151.17,9.45]
[1642032061318,12.8145,151.26,151.17,9.45]
[1642032061519,6.0,151.25,151.13,19.3725]
[1642032061719,2.645,151.24,151.13,9.45]
[1642032062121,2.895,151.24,151.13,9.45]
[1642032062323,11.9802882,151.23,151.13,9.45]
[1642032062522,2.645,151.22,151.13,9.45]
[1642032062721,2.645,151.24,151.13,19.6227]
[1642032062925,2.645,151.24,151.14,1.53906792]
[1642032063123,2.895,151.24,151.15,9.45]
[1642032063624,12.8169,151.24,151.15,19.3711]
[1642032063826,12.8169,151.24,151.15,9.45]
[1642032064625,12.5060069,151.23,151.15,9.45]
[1642032064824,2.645,151.22,151.15,9.45]
[1642032065226,2.895,151.22,151.15,9.45]
[1642032067136,2.645,151.22,151.15,9.7]
[1642032068039,2.645,151.22,151.15,11.23906792]
[1642032068240,12.5060069,151.23,151.15,11.23906792]
[1642032068442,12.5060069,151.23,151.15,19.3716]
[1642032069442,12.5060069,151.23,151.15,21.16066792]
[1642032069646,79.78,151.25,151.15,21.16066792]
[1642032070650,95.01166013,151.25,151.15,21.16066792]
[1642032070849,2.645,151.24,151.15,20.91066792]
[1642032071049,2.645,151.24,151.15,9.45]
[1642032071249,2.895,151.24,151.15,9.45]
[1642032072051,2.895,151.24,151.15,19.3716]
[1642032072851,2.645,151.24,151.15,19.3716]
[1642032073069,91.06953997,151.36,151.15,21.16066792]
[1642032073070,2.645,151.26,151.15,21.16066792]
[1642032073275,2.645,151.3,151.23,9.9159]
[1642032073474,13.59196496,151.33,151.23,16.6109]
[1642032073674,13.59196496,151.33,151.23,16.8609]
[1642032073871,13.59196496,151.33,151.24,9.45]
[1642032074272,13.59196496,151.33,151.24,9.7]
[1642032074574,13.59196496,151.33,151.24,11.23365068]
[1642032074773,13.59196496,151.33,151.24,9.7]
[1642032075071,77.5892,151.35,151.24,11.23365068]
[1642032075276,77.5892,151.35,151.26,9.9139]
[1642032075471,2.642,151.38,151.27,9.45]
[1642032075775,2.642,151.38,151.27,11.23365068]
[1642032075972,2.642,151.38,151.28,6.0]
[1642032076171,2.642,151.38,151.29,9.45]
[1642032076372,2.642,151.39,151.31,41.85902615]
[1642032076571,77.8555,151.4,151.32,9.45]
[1642032076772,2.642,151.42,151.32,9.7]
[1642032077575,2.642,151.42,151.32,75.74]
[1642032078384,2.642,151.42,151.35,9.9082]
[1642032078776,2.642,151.42,151.35,10.1582]
[1642032079876,79.6478,151.43,151.35,10.1582]
[1642032080077,77.0058,151.43,151.35,10.1582]
[1642032080284,77.0058,151.43,151.35,15.6382]
[1642032080486,2.642,151.44,151.35,15.6382]
[1642032080487,2.642,151.44,151.36,9.71]
[1642032080684,2.642,151.46,151.4,9.9049]
[1642032080890,2.641,151.48,151.41,9.45]
[1642032081085,78.3359,151.49,151.41,9.71]
[1642032081281,78.3359,151.49,151.41,9.96]
[1642032081883,78.3359,151.49,151.42,6.0]
[1642032082283,2.641,151.49,151.42,6.25]
[1642032082486,2.641,151.49,151.43,9.9029]
[1642032082684,2.64,151.5,151.43,10.1629]
[1642032083885,0.26,151.49,151.43,10.1629]
[1642032084087,2.64,151.5,151.43,49.10640008]
[1642032084316,2.64,151.53,151.46,9.9008]
[1642032084621,6.0,151.52,151.47,0.26]
[1642032085221,6.25,151.52,151.47,0.26]
[1642032087225,0.25,151.52,151.47,10.1605]
[1642032087424,2.64,151.53,151.48,0.26]
[1642032087723,0.25,151.53,151.48,0.26]
[1642032088223,0.25,151.53,151.47,9.45]
[1642032088423,0.25,151.53,151.48,16.1596]
[1642032088629,78.0931,151.54,151.48,16.1596]
[1642032088827,0.25,151.54,151.48,16.1596]
[1642032089225,2.64,151.56,151.48,16.1596]
[1642032089429,2.64,151.56,151.48,16.4096]
[1642032089625,2.638,151.57,151.49,9.45]
[1642032089825,1.80477668,151.59,151.49,9.45]
[1642032089826,2.638,151.59,151.53,9.8964]
[1642032090025,2.638,151.6,151.54,6.26]
[1642032090225,2.638,151.6,151.54,6.51]
[1642032090626,2.638,151.6,151.54,0.51]
[1642032090827,78.0947,151.61,151.55,6.0]
[1642032091029,6.26,151.6,151.55,6.0]
[1642032091234,2.898,151.6,151.52,9.45]
[1642032091429,6.0,151.59,151.5,9.45]
[1642032091629,8.638,151.59,151.5,9.45]
[1642032091829,10.4632545,151.59,151.51,0.26]
[1642032092030,10.4632545,151.59,151.51,10.1577]
[1642032092334,4.4632545,151.59,151.51,10.1577]
[1642032092533,4.7132545,151.59,151.51,10.1577]
[1642032093131,2.638,151.59,151.51,10.1577]
[1642032093432,12.5357,151.59,151.51,10.4077]
[1642032093835,12.5357,151.59,151.51,10.1577]
[1642032094632,12.7857,151.59,151.51,10.1577]
[1642032095132,12.7857,151.59,151.51,10.4077]
[1642032095631,2.888,151.59,151.51,10.4077]
[1642032095932,2.638,151.59,151.51,10.4077]
[1642032096332,0.26,151.6,151.51,10.4077]
[1642032097131,10.157,151.6,151.51,10.4077]
[1642032097333,10.157,151.6,151.51,9.8977]
[1642032097531,2.638,151.59,151.48,9.45]
[1642032097731,2.638,151.59,151.46,6.0]
[1642032097732,8.888,151.59,151.46,6.0]
[1642032097932,85.5031,151.58,151.45,9.45]
[1642032098140,2.64,151.57,151.45,9.45]
[1642032098334,8.95792715,151.56,151.45,9.45]
[1642032098536,2.64,151.55,151.45,9.45]
[1642032098734,12.7905,151.55,151.45,19.351]
[1642032098935,0.26,151.54,151.45,19.351]
[1642032099141,2.64,151.53,151.45,19.351]
[1642032099337,16.346739,151.53,151.45,19.351]
[1642032099535,0.26,151.52,151.45,19.351]
[1642032099736,2.64,151.51,151.45,19.351]
[1642032099937,2.64,151.52,151.45,19.351]
[1642032100137,0.25,151.52,151.45,19.351]
[1642032100637,0.51,151.52,151.45,19.351]
[1642032100839,2.64,151.53,151.45,19.351]
[1642032101040,2.64,151.55,151.45,19.351]
[1642032101239,2.89,151.55,151.45,19.351]
[1642032101439,12.7901,151.55,151.46,0.26]
[1642032101644,10.1501,151.55,151.46,0.26]
[1642032101840,22.63905189,151.55,151.46,10.1604]
[1642032102242,0.26,151.54,151.46,9.9004]
[1642032102443,2.64,151.53,151.45,9.7]
[1642032102642,2.89,151.53,151.45,9.7]
[1642032102944,0.26,151.52,151.45,9.7]
[1642032103141,4.43571426,151.52,151.45,9.7]
[1642032103646,0.25,151.53,151.45,9.7]
[1642032103845,2.64,151.56,151.45,9.7]
[1642032104043,2.9,151.54,151.45,9.7]
[1642032104245,0.51,151.54,151.46,0.26]
[1642032104643,2.64,151.56,151.46,9.9003]
[1642032104644,9.9006,151.55,151.46,9.9003]
[1642032105046,10.1506,151.55,151.47,0.26]
[1642032105445,2.64,151.54,151.47,0.26]
[1642032105648,2.64,151.54,151.46,0.26]
[1642032106550,2.64,151.54,151.47,9.9001]
[1642032106754,2.89,151.54,151.47,9.9001]
[1642032106949,2.89,151.54,151.47,10.1501]
[1642032107149,2.64,151.54,151.48,0.26]
[1642032107351,102.6496,151.57,151.48,0.26]
[1642032107749,23.5339,151.57,151.48,0.26]
[1642032108350,23.5339,151.57,151.5,9.898]
[1642032108550,0.25,151.57,151.5,9.898]
[1642032108752,82.1331,151.58,151.47,9.7]
[1642032108951,2.638,151.56,151.47,9.7]
[1642032109151,0.25,151.56,151.47,9.7]
[1642032109354,0.26,151.55,151.47,9.7]
[1642032109552,0.25,151.56,151.47,9.7]
[1642032109754,0.25,151.56,151.47,39.6742047]
[1642032109955,0.25,151.56,151.48,0.26]
[1642032110154,0.25,151.56,151.49,9.8988]
[1642032110358,3.15,151.57,151.45,9.45]
[1642032110588,2.638,151.55,151.45,9.45]
[1642032110781,9.45,151.55,151.41,9.45]
[1642032110975,8.64,151.54,151.41,9.45]
[1642032111175,9.45296025,151.54,151.41,9.45]
[1642032111380,9.9024,151.52,151.42,9.9033]
[1642032111576,2.64,151.51,151.43,9.45]
[1642032111776,0.25,151.51,151.43,9.45]
[1642032111979,0.25,151.51,151.43,9.7]
[1642032112176,2.64,151.53,151.43,9.7]
[1642032112377,2.89,151.53,151.43,9.7]
[1642032113377,0.26,151.52,151.46,9.9011]
[1642032113780,0.26,151.52,151.43,9.7]
[1642032113978,2.64,151.51,151.43,9.7]
[1642032114179,2.89,151.51,151.43,9.7]
[1642032114378,2.89,151.51,151.44,0.26]
[1642032114583,0.25,151.51,151.44,0.26]
[1642032114779,0.25,151.51,151.44,10.1618]
[1642032114980,0.25,151.51,151.44,10.4118]
[1642032115380,0.25,151.52,151.44,10.4118]
[1642032115581,2.64,151.51,151.44,10.4118]
[1642032115782,2.9,151.52,151.44,10.4118]
[1642032116181,0.51,151.52,151.44,10.4118]
[1642032116382,2.64,151.51,151.44,10.4118]
[1642032116581,2.89,151.51,151.44,10.1618]
[1642032118384,15.72521496,151.51,151.43,9.45]
[1642032118584,10.1528,151.51,151.43,9.45]
[1642032118992,2.64,151.5,151.43,9.45]
[1642032119187,8.89,151.5,151.43,9.45]
[1642032119391,8.89,151.5,151.4,9.45]
[1642032119791,0.26,151.49,151.41,0.26]
[1642032120087,10.1642,151.49,151.41,10.1639]
[1642032120292,9.9042,151.49,151.41,10.1639]
[1642032120493,6.0,151.48,151.41,10.4139]
[1642032120691,6.25,151.48,151.41,10.4139]
[1642032121288,6.25,151.48,151.41,10.1639]
[1642032122493,6.25,151.48,151.41,9.9039]
[1642032122692,16.1548,151.48,151.41,9.9039]
[1642032122892,2.641,151.47,151.41,9.9039]
[1642032123092,2.641,151.47,151.39,9.9051]
[1642032123391,2.891,151.47,151.39,9.9051]
[1642032123992,2.891,151.47,151.4,0.26]
[1642032125693,2.891,151.47,151.39,10.1551]
[1642032125894,0.26,151.46,151.39,9.9051]
[1642032126095,0.26,151.46,151.38,26.65245708]
[1642032126292,0.26,151.46,151.38,26.90245708]
[1642032126493,0.26,151.46,151.38,0.25]
[1642032127398,10.1661,151.46,151.38,0.51]
[1642032127597,16.1661,151.46,151.38,0.26]
[1642032127796,16.4161,151.46,151.38,0.26]
[1642032128197,16.4161,151.46,151.38,10.1663]
[1642032128697,16.4161,151.46,151.38,10.4163]
[1642032129098,10.4161,151.46,151.38,10.4163]
[1642032130827,15.9068,151.45,151.38,10.4163]
[1642032131125,16.1568,151.45,151.38,10.4163]
[1642032131728,10.1568,151.45,151.38,10.4163]
[1642032133731,10.1568,151.45,151.38,10.1663]
[1642032134731,12.7978,151.45,151.38,10.1663]
[1642032135433,0.25,151.45,151.38,10.1663]
[1642032135641,2.891,151.47,151.38,10.1663]
[1642032135833,6.0,151.46,151.38,10.1663]
[1642032136034,2.641,151.45,151.38,10.1663]
[1642032136235,6.0,151.46,151.38,10.4163]
[1642032136432,0.25,151.47,151.38,10.4163]
[1642032136633,2.891,151.48,151.39,30.27597505]
[1642032136833,9.9054,151.47,151.39,40.18117505]
[1642032137034,9.9054,151.47,151.4,0.26]
[1642032137233,10.1554,151.47,151.4,0.26]
[1642032137434,0.25,151.47,151.4,0.26]
[1642032137633,2.641,151.46,151.37,66.04]
[1642032137833,0.25,151.47,151.38,0.26]
[1642032138033,2.641,151.48,151.4,9.9051]
[1642032138433,2.641,151.48,151.41,0.26]
[1642032138635,22.9215,151.49,151.41,0.26]
[1642032138834,2.641,151.47,151.41,0.26]
[1642032139033,22.9215,151.49,151.39,27.4731936]
[1642032139034,2.641,151.48,151.39,27.4731936]
[1642032139737,2.891,151.48,151.39,27.4731936]
[1642032140438,2.641,151.48,151.4,9.9046]
[1642032140640,35.4668,151.49,151.4,9.9046]
[1642032140842,35.4668,151.49,151.41,0.26]
[1642032141445,35.4668,151.49,151.4,0.51]
[1642032141640,32.8258,151.49,151.4,0.51]
[1642032141840,32.8258,151.49,151.4,0.26]
[1642032142341,33.0758,151.49,151.4,0.26]
[1642032142541,32.8258,151.49,151.41,9.9039]
[1642032142741,32.8258,151.49,151.41,10.1539]
[1642032142942,32.8258,151.49,151.42,0.26]
[1642032143942,33.0758,151.49,151.42,0.26]
[1642032144343,2.641,151.48,151.42,0.26]
[1642032145643,35.4668,151.49,151.42,0.26]
[1642032146145,35.7168,151.49,151.42,0.26]
[1642032146743,35.4668,151.49,151.41,9.9039]
[1642032148076,35.7168,151.49,151.42,0.26]
[1642032150247,35.7168,151.49,151.42,9.9038]
[1642032150447,2.891,151.49,151.43,0.26]
[1642032150646,0.25,151.49,151.43,0.26]
[1642032150846,79.9998,151.5,151.43,0.26]
[1642032151049,6.0,151.49,151.4,6.26]
[1642032151350,79.9998,151.5,151.4,8.04365068]
[1642032151548,79.9998,151.5,151.43,9.9032]
[1642032151747,79.9998,151.5,151.43,10.1532]
[1642032151947,89.9032,151.5,151.44,0.26]
[1642032152147,2.64,151.49,151.44,0.26]
[1642032152548,2.89,151.49,151.44,0.26]
[1642032152948,2.89,151.49,151.43,9.9032]
[1642032153148,89.9032,151.5,151.43,9.9032]
[1642032153351,6.0,151.49,151.43,9.9032]
[1642032153546,89.9032,151.5,151.43,9.9032]
[1642032153950,0.26,151.49,151.43,9.9032]
[1642032155451,2.64,151.48,151.43,9.9032]
[1642032155750,0.25,151.48,151.43,9.9032]
[1642032155951,6.0,151.49,151.44,0.26]
[1642032156154,6.25,151.49,151.44,0.26]
[1642032158755,0.25,151.49,151.44,0.26]
[1642032158957,90.1534,151.5,151.44,0.26]
[1642032159153,2.64,151.49,151.44,0.26]
[1642032160456,82.8898,151.5,151.44,0.26]
[1642032160654,80.2498,151.5,151.44,0.26]
[1642032161357,90.1533,151.5,151.44,0.26]
[1642032161959,2.64,151.49,151.44,0.26]
[1642032162157,2.89,151.49,151.44,0.26]
[1642032163290,2.89,151.49,151.41,10.1538]
[1642032163489,2.89,151.49,151.42,0.26]
[1642032163889,16.20766415,151.49,151.4,0.26]
[1642032164292,16.20766415,151.49,151.38,6.26]
[1642032164494,16.20766415,151.49,151.38,72.3]
[1642032164991,1.88592806,151.47,151.38,72.3]
[1642032165190,1.88592806,151.47,151.38,6.25]
[1642032165392,1.88592806,151.47,151.4,9.9044]
[1642032165593,4.52692806,151.47,151.4,9.9044]
[1642032166194,4.52692806,151.47,151.41,72.04]
[1642032166392,4.52692806,151.47,151.44,9.9021]
[1642032166393,1.88592806,151.47,151.44,9.9021]
[1642032166596,1.88592806,151.47,151.45,6.0]
[1642032167091,1.88592806,151.48,151.46,0.26]
[1642032167493,1.88592806,151.48,151.46,6.26]
[1642032167693,1.88592806,151.48,151.46,16.4092]
[1642032168293,3.71823419,151.51,151.47,50.0]
[1642032168496,3.71823419,151.51,151.48,64.22274268]
[1642032168696,1.88663339,151.52,151.49,9.8958]
[1642032168899,1.88663339,151.52,151.49,16.1558]
[1642032169102,1.88663339,151.52,151.49,16.4058]
[1642032170200,3.71823419,151.56,151.49,16.4058]
[1642032170399,2.638,151.58,151.49,16.4058]
[1642032170801,2.888,151.58,151.49,16.4058]
[1642032171199,2.638,151.58,151.49,16.4058]
[1642032172600,2.888,151.58,151.49,10.4058]
[1642032172800,1.80477668,151.57,151.49,9.8958]
[1642032173001,1.80477668,151.57,151.45,42.4437]
[1642032173002,8.638,151.56,151.47,9.8991]
[1642032173199,8.888,151.56,151.47,9.8991]
[1642032173398,2.06477668,151.55,151.47,9.8991]
[1642032173598,8.64,151.54,151.47,9.8991]
[1642032173799,10.44477668,151.54,151.47,9.8991]
[1642032173998,10.69477668,151.54,151.47,9.8991]
[1642032174201,4.44477668,151.54,151.48,10.1589]
[1642032174402,4.44477668,151.54,151.48,9.8989]
[1642032175300,4.69477668,151.54,151.48,9.8989]
[1642032175701,6.0,151.53,151.48,9.8989]
[1642032175902,2.64,151.52,151.48,9.8989]
[1642032176200,2.89,151.52,151.48,9.8989]
[1642032176603,0.25,151.52,151.46,10.1599]
[1642032177008,2.89,151.52,151.46,10.1599]
[1642032177204,0.25,151.52,151.46,10.1599]
[1642032177605,8.89,151.53,151.46,10.1599]
[1642032178805,6.25,151.53,151.46,10.1599]
[1642032179005,6.25,151.53,151.46,0.26]
[1642032179206,6.25,151.53,151.44,10.1511]
[1642032179407,0.26,151.52,151.44,10.1511]
[1642032179813,4.19694705,151.52,151.44,9.9011]
[1642032180008,14.09904705,151.52,151.44,9.9011]
[1642032180211,14.34904705,151.52,151.42,9.9026]
[1642032180414,4.44477668,151.51,151.41,0.25]
[1642032180610,34.29857668,151.51,151.41,0.25]
[1642032180809,81.11637668,151.5,151.41,0.25]
[1642032181010,45.1952191,151.49,151.41,0.25]
[1642032181209,47.24999578,151.49,151.41,0.25]
[1642032181409,0.26,151.48,151.41,0.25]
[1642032181610,0.26,151.48,151.4,9.9038]
[1642032181835,0.26,151.48,151.41,0.26]
[1642032182636,0.26,151.48,151.41,9.9037]
[1642032183036,0.26,151.48,151.41,10.1537]
[1642032183336,2.641,151.49,151.41,10.1537]
[1642032183536,79.0516,151.5,151.41,10.1537]
[1642032183737,79.3016,151.5,151.41,10.1537]
[1642032183937,79.0516,151.5,151.42,0.26]
[1642032184140,2.641,151.52,151.42,22.81993065]
[1642032184337,2.641,151.52,151.45,9.9009]
[1642032184539,100.6045,151.53,151.45,9.9009]
[1642032184743,97.9645,151.53,151.46,0.26]
[1642032184937,74.5097,151.53,151.46,0.26]
[1642032185137,6.35823419,151.55,151.46,0.26]